[Event "Titled Tuesday Blitz January 31 Early 2023"]
[White "Liimatainen, Jero"]
[Black "Wartiovaara, Oliver"]
[WhiteFideId "509531"]
[BlackFideId "513024"]
[WhiteElo "1948"]
[BlackElo "2264"]
[Result "0-1"]
[Round "10"]
[TimeControl "180+2"]
[Date "2023.01.31"]
[WhiteClock "0:00:03"]
[BlackClock "0:00:25"]

1. e4 {[%clk 0:03:00]}  d5 {[%clk 0:02:58]} 2. exd5 {[%clk 0:03:00]}  Qxd5 {[%clk 0:02:57]} 3. Nc3 {[%clk 0:03:00]}  Qe5+ {[%clk 0:02:57]} 4. Be2 {[%clk 0:02:59]}  Bg4 {[%clk 0:02:58]} 5. d4 {[%clk 0:02:53]}  Bxe2 {[%clk 0:02:59]} 6. Ngxe2 {[%clk 0:02:51]}  Qa5 {[%clk 0:02:59]} 7. O-O {[%clk 0:02:50]}  Nf6 {[%clk 0:02:59]} 8. a3 {[%clk 0:02:44]}  Nc6 {[%clk 0:02:45]} 9. Be3 {[%clk 0:01:57]}  O-O-O {[%clk 0:02:44]} 10. b4 {[%clk 0:01:57]}  Qh5 {[%clk 0:02:43]} 11. h3 {[%clk 0:01:52]}  e6 {[%clk 0:02:04]} 12. Nf4 {[%clk 0:00:55]}  Qxd1 {[%clk 0:02:01]} 13. Rfxd1 {[%clk 0:00:55]}  a6 {[%clk 0:01:55]} 14. Na4 {[%clk 0:00:52]}  Bd6 {[%clk 0:01:50]} 15. c3 {[%clk 0:00:51]}  e5 {[%clk 0:01:39]} 16. Ne2 {[%clk 0:00:49]}  exd4 {[%clk 0:01:38]} 17. Nxd4 {[%clk 0:00:46]}  Nxd4 {[%clk 0:01:34]} 18. Bxd4 {[%clk 0:00:44]}  Rhe8 {[%clk 0:01:33]} 19. Bxf6 {[%clk 0:00:23]}  gxf6 {[%clk 0:01:33]} 20. Kf1 {[%clk 0:00:24]}  b5 {[%clk 0:01:29]} 21. Nb2 {[%clk 0:00:20]}  c5 {[%clk 0:01:28]} 22. Re1 {[%clk 0:00:18]}  c4 {[%clk 0:01:25]} 23. Rxe8 {[%clk 0:00:17]}  Rxe8 {[%clk 0:01:26]} 24. Re1 {[%clk 0:00:17]}  Rxe1+ {[%clk 0:01:15]} 25. Kxe1 {[%clk 0:00:17]}  Kc7 {[%clk 0:01:07]} 26. Ke2 {[%clk 0:00:16]}  Kc6 {[%clk 0:01:07]} 27. a4 {[%clk 0:00:15]}  Kd5 {[%clk 0:00:53]} 28. axb5 {[%clk 0:00:15]}  axb5 {[%clk 0:00:54]} 29. Ke3 {[%clk 0:00:16]}  Be5 {[%clk 0:00:51]} 30. Nd1 {[%clk 0:00:15]}  f5 {[%clk 0:00:50]} 31. f4 {[%clk 0:00:15]}  Bg7 {[%clk 0:00:47]} 32. Kf3 {[%clk 0:00:15]}  Ke6 {[%clk 0:00:46]} 33. g4 {[%clk 0:00:15]}  fxg4+ {[%clk 0:00:46]} 34. hxg4 {[%clk 0:00:15]}  f5 {[%clk 0:00:45]} 35. gxf5+ {[%clk 0:00:15]}  Kxf5 {[%clk 0:00:46]} 36. Ne3+ {[%clk 0:00:15]}  Ke6 {[%clk 0:00:45]} 37. Nd1 {[%clk 0:00:09]}  h5 {[%clk 0:00:45]} 38. Ke4 {[%clk 0:00:08]}  Bf6 {[%clk 0:00:43]} 39. f5+ {[%clk 0:00:08]}  Kd6 {[%clk 0:00:43]} 40. Kf4 {[%clk 0:00:08]}  Kd5 {[%clk 0:00:43]} 41. Ne3+ {[%clk 0:00:07]}  Kc6 {[%clk 0:00:43]} 42. Nd1 {[%clk 0:00:06]}  Kd6 {[%clk 0:00:44]} 43. Ke4 {[%clk 0:00:05]}  h4 {[%clk 0:00:44]} 44. Kf4 {[%clk 0:00:05]}  h3 {[%clk 0:00:40]} 45. Kg3 {[%clk 0:00:05]}  Ke5 {[%clk 0:00:39]} 46. Kxh3 {[%clk 0:00:04]}  Kxf5 {[%clk 0:00:40]} 47. Kg3 {[%clk 0:00:02]}  Ke4 {[%clk 0:00:40]} 48. Kg4 {[%clk 0:00:02]}  Kd3 {[%clk 0:00:40]} 49. Kf5 {[%clk 0:00:03]}  Bxc3 {[%clk 0:00:40]} 50. Ke6 {[%clk 0:00:04]}  Bxb4 {[%clk 0:00:36]} 51. Kd5 {[%clk 0:00:04]}  Bd2 {[%clk 0:00:34]} 52. Kc5 {[%clk 0:00:04]}  b4 {[%clk 0:00:27]} 53. Nb2+ {[%clk 0:00:03]}  Kc2 {[%clk 0:00:27]} 54. Nxc4 {[%clk 0:00:04]}  b3 {[%clk 0:00:27]} 55. Kb5 {[%clk 0:00:03]}  Bc3 {[%clk 0:00:25]} 56. Ka4 {[%clk 0:00:03]}  Bd4 {[%clk 0:00:25]} 57. Ka3 {[%clk 0:00:03]}  Bc5+ {[%clk 0:00:24]} 58. Ka4 {[%clk 0:00:03]}  Kc3 {[%clk 0:00:25]} 0-1


[Site "https://www.chess.com"]

[Event "Titled Tuesday Blitz January 31 Early 2023"]
[White "Martin, Lewis"]
[Black "matenitian"]
[WhiteFideId "410551"]
[WhiteElo "2135"]
[BlackElo "2434"]
[Result "0-1"]
[Round "10"]
[TimeControl "180+2"]
[Date "2023.01.31"]
[WhiteClock "0:00:10"]
[BlackClock "0:00:23"]

1. e4 {[%clk 0:03:00]}  e5 {[%clk 0:02:59]} 2. Nf3 {[%clk 0:03:00]}  Nc6 {[%clk 0:02:59]} 3. Bb5 {[%clk 0:02:58]}  a6 {[%clk 0:02:59]} 4. Ba4 {[%clk 0:02:58]}  Nge7 {[%clk 0:02:59]} 5. c3 {[%clk 0:02:57]}  g6 {[%clk 0:02:58]} 6. O-O {[%clk 0:02:54]}  Bg7 {[%clk 0:02:57]} 7. d4 {[%clk 0:02:54]}  exd4 {[%clk 0:02:57]} 8. cxd4 {[%clk 0:02:53]}  O-O {[%clk 0:02:58]} 9. Re1 {[%clk 0:02:52]}  d5 {[%clk 0:02:56]} 10. e5 {[%clk 0:02:50]}  Bg4 {[%clk 0:02:57]} 11. Be3 {[%clk 0:02:44]}  f6 {[%clk 0:02:55]} 12. exf6 {[%clk 0:02:33]}  Bxf6 {[%clk 0:02:55]} 13. Nbd2 {[%clk 0:02:34]}  Kh8 {[%clk 0:02:51]} 14. h3 {[%clk 0:02:23]}  Bd7 {[%clk 0:02:41]} 15. Nf1 {[%clk 0:02:19]}  Nf5 {[%clk 0:02:39]} 16. Qd2 {[%clk 0:02:09]}  Nxe3 {[%clk 0:02:12]} 17. Nxe3 {[%clk 0:02:06]}  Bg7 {[%clk 0:01:50]} 18. Nxd5 {[%clk 0:01:57]}  Bxh3 {[%clk 0:01:46]} 19. Bxc6 {[%clk 0:01:46]}  bxc6 {[%clk 0:01:42]} 20. Nb4 {[%clk 0:01:45]}  Qd7 {[%clk 0:01:22]} 21. Nh2 {[%clk 0:01:09]}  c5 {[%clk 0:01:13]} 22. Nc2 {[%clk 0:01:01]}  cxd4 {[%clk 0:00:57]} 23. gxh3 {[%clk 0:00:57]}  Qxh3 {[%clk 0:00:58]} 24. Qg5 {[%clk 0:00:45]}  Rxf2 {[%clk 0:00:46]} 25. Kxf2 {[%clk 0:00:34]}  Qxh2+ {[%clk 0:00:45]} 26. Kf3 {[%clk 0:00:31]}  Rf8+ {[%clk 0:00:38]} 27. Ke4 {[%clk 0:00:23]}  Qxc2+ {[%clk 0:00:36]} 28. Kd5 {[%clk 0:00:23]}  Rf5+ {[%clk 0:00:30]} 29. Qxf5 {[%clk 0:00:23]}  Qxf5+ {[%clk 0:00:31]} 30. Kc6 {[%clk 0:00:23]}  h5 {[%clk 0:00:27]} 31. Rac1 {[%clk 0:00:17]}  d3 {[%clk 0:00:25]} 32. Rcd1 {[%clk 0:00:14]}  d2 {[%clk 0:00:24]} 33. Rxd2 {[%clk 0:00:11]}  Qb5+ {[%clk 0:00:23]} 34. Kxc7 {[%clk 0:00:10]}  Qa5+ {[%clk 0:00:24]} 35. Kc8 {[%clk 0:00:10]}  Qxd2 {[%clk 0:00:23]} 0-1


[Site "https://www.chess.com"]

[Event "Titled Tuesday Blitz January 31 Early 2023"]
[White "Gressmann, Moritz"]
[Black "Ciuffoletti, Paolo"]
[WhiteFideId "24695084"]
[BlackFideId "807630"]
[WhiteElo "2129"]
[BlackElo "2106"]
[Result "0-1"]
[Round "10"]
[TimeControl "180+2"]
[Date "2023.01.31"]
[WhiteClock "0:00:15"]
[BlackClock "0:00:15"]

1. e4 {[%clk 0:03:00]}  c5 {[%clk 0:02:06]} 2. c3 {[%clk 0:03:00]}  d5 {[%clk 0:02:05]} 3. exd5 {[%clk 0:02:58]}  Qxd5 {[%clk 0:02:05]} 4. d4 {[%clk 0:02:59]}  Nc6 {[%clk 0:02:05]} 5. Nf3 {[%clk 0:02:59]}  e6 {[%clk 0:02:05]} 6. Be2 {[%clk 0:02:58]}  Nf6 {[%clk 0:02:05]} 7. O-O {[%clk 0:02:53]}  Be7 {[%clk 0:02:04]} 8. Bg5 {[%clk 0:02:51]}  O-O {[%clk 0:01:59]} 9. Na3 {[%clk 0:02:40]}  cxd4 {[%clk 0:01:57]} 10. cxd4 {[%clk 0:02:39]}  Bxa3 {[%clk 0:01:47]} 11. bxa3 {[%clk 0:02:39]}  Ne4 {[%clk 0:01:44]} 12. Be3 {[%clk 0:02:35]}  f5 {[%clk 0:01:38]} 13. Qb3 {[%clk 0:02:24]}  f4 {[%clk 0:01:29]} 14. Bc1 {[%clk 0:02:20]}  Nxd4 {[%clk 0:01:17]} 15. Nxd4 {[%clk 0:02:15]}  Qxd4 {[%clk 0:01:16]} 16. Bb2 {[%clk 0:02:14]}  Qb6 {[%clk 0:01:12]} 17. Rfd1 {[%clk 0:02:03]}  Qxf2+ {[%clk 0:01:03]} 18. Kh1 {[%clk 0:02:02]}  Qxe2 {[%clk 0:01:02]} 19. Re1 {[%clk 0:01:54]}  Nf2+ {[%clk 0:00:54]} 20. Kg1 {[%clk 0:01:54]}  Nh3+ {[%clk 0:00:33]} 21. gxh3 {[%clk 0:01:54]}  Qh5 {[%clk 0:00:32]} 22. Re5 {[%clk 0:01:50]}  Qg6+ {[%clk 0:00:28]} 23. Kh1 {[%clk 0:01:49]}  f3 {[%clk 0:00:28]} 24. Rg1 {[%clk 0:01:41]}  f2 {[%clk 0:00:25]} 25. Rf1 {[%clk 0:00:47]}  Bd7 {[%clk 0:00:24]} 26. Qxb7 {[%clk 0:00:44]}  Qd3 {[%clk 0:00:22]} 27. Qg2 {[%clk 0:00:30]}  Bc6 {[%clk 0:00:17]} 28. Re4 {[%clk 0:00:15]}  Bxe4 {[%clk 0:00:15]} 0-1


[Site "https://www.chess.com"]

[Event "Titled Tuesday Blitz January 31 Early 2023"]
[White "Gonzalez, Francisco Silva"]
[Black "Corredor Castellanos, Camilo"]
[WhiteFideId "1512285"]
[BlackFideId "4425871"]
[WhiteElo "2021"]
[BlackElo "1957"]
[Result "0-1"]
[Round "10"]
[TimeControl "180+2"]
[Date "2023.01.31"]
[WhiteClock "0:00:11"]
[BlackClock "0:00:29"]

1. d4 {[%clk 0:02:54]}  Nf6 {[%clk 0:02:58]} 2. c4 {[%clk 0:02:53]}  e6 {[%clk 0:02:59]} 3. Nc3 {[%clk 0:02:54]}  Bb4 {[%clk 0:02:59]} 4. a3 {[%clk 0:02:54]}  Bxc3+ {[%clk 0:02:59]} 5. bxc3 {[%clk 0:02:54]}  b6 {[%clk 0:02:58]} 6. e3 {[%clk 0:02:53]}  Bb7 {[%clk 0:02:56]} 7. f3 {[%clk 0:02:53]}  Nc6 {[%clk 0:02:49]} 8. e4 {[%clk 0:02:52]}  Ba6 {[%clk 0:02:47]} 9. Bd3 {[%clk 0:02:48]}  Na5 {[%clk 0:02:47]} 10. Qe2 {[%clk 0:02:48]}  d6 {[%clk 0:02:47]} 11. Bg5 {[%clk 0:02:47]}  Qd7 {[%clk 0:02:44]} 12. a4 {[%clk 0:02:40]}  Qc6 {[%clk 0:02:40]} 13. d5 {[%clk 0:02:40]}  Qd7 {[%clk 0:02:20]} 14. c5 {[%clk 0:02:36]}  Bxd3 {[%clk 0:02:19]} 15. c6 {[%clk 0:02:36]}  Bxe2 {[%clk 0:02:18]} 16. cxd7+ {[%clk 0:02:36]}  Nxd7 {[%clk 0:02:16]} 17. dxe6 {[%clk 0:02:28]}  fxe6 {[%clk 0:02:08]} 18. Kxe2 {[%clk 0:02:20]}  O-O {[%clk 0:02:03]} 19. Nh3 {[%clk 0:02:19]}  e5 {[%clk 0:01:50]} 20. Be3 {[%clk 0:02:11]}  Nb3 {[%clk 0:01:49]} 21. Ra3 {[%clk 0:02:09]}  Na5 {[%clk 0:01:41]} 22. Nf2 {[%clk 0:02:06]}  Nc4 {[%clk 0:01:41]} 23. Ra2 {[%clk 0:02:05]}  Nxe3 {[%clk 0:01:41]} 24. Kxe3 {[%clk 0:02:05]}  a5 {[%clk 0:01:35]} 25. c4 {[%clk 0:02:04]}  Nc5 {[%clk 0:01:29]} 26. Ra3 {[%clk 0:02:01]}  Kf7 {[%clk 0:01:26]} 27. Rd1 {[%clk 0:01:58]}  Ke6 {[%clk 0:01:27]} 28. Ng4 {[%clk 0:01:53]}  h5 {[%clk 0:01:25]} 29. Nf2 {[%clk 0:01:50]}  Rfd8 {[%clk 0:01:25]} 30. Ke2 {[%clk 0:01:50]}  c6 {[%clk 0:01:24]} 31. Rb1 {[%clk 0:01:47]}  Ra6 {[%clk 0:01:22]} 32. Nh3 {[%clk 0:01:46]}  Kf6 {[%clk 0:01:20]} 33. Nf2 {[%clk 0:01:35]}  d5 {[%clk 0:01:17]} 34. cxd5 {[%clk 0:01:35]}  cxd5 {[%clk 0:01:17]} 35. exd5 {[%clk 0:01:35]}  Rxd5 {[%clk 0:01:18]} 36. Nd1 {[%clk 0:01:31]}  Rd4 {[%clk 0:01:18]} 37. Nc3 {[%clk 0:01:23]}  Kf5 {[%clk 0:01:01]} 38. Raa1 {[%clk 0:01:16]}  Rb4 {[%clk 0:00:59]} 39. Ke3 {[%clk 0:01:11]}  Ra8 {[%clk 0:00:54]} 40. h3 {[%clk 0:01:09]}  Rd8 {[%clk 0:00:53]} 41. g4+ {[%clk 0:01:08]}  hxg4 {[%clk 0:00:52]} 42. hxg4+ {[%clk 0:01:08]}  Ke6 {[%clk 0:00:53]} 43. Rxb4 {[%clk 0:01:04]}  axb4 {[%clk 0:00:53]} 44. Ne4 {[%clk 0:00:53]}  Rd3+ {[%clk 0:00:51]} 45. Ke2 {[%clk 0:00:53]}  Ra3 {[%clk 0:00:51]} 46. Rc1 {[%clk 0:00:37]}  Ra2+ {[%clk 0:00:50]} 47. Ke3 {[%clk 0:00:35]}  Ra3+ {[%clk 0:00:48]} 48. Ke2 {[%clk 0:00:35]}  Kd5 {[%clk 0:00:36]} 49. Rd1+ {[%clk 0:00:21]}  Kc4 {[%clk 0:00:34]} 50. Nd6+ {[%clk 0:00:18]}  Kb3 {[%clk 0:00:33]} 51. Nc8 {[%clk 0:00:13]}  Ra2+ {[%clk 0:00:30]} 52. Ke3 {[%clk 0:00:13]}  Nxa4 {[%clk 0:00:30]} 53. Ke4 {[%clk 0:00:13]}  Nc3+ {[%clk 0:00:30]} 54. Kxe5 {[%clk 0:00:14]}  Nxd1 {[%clk 0:00:31]} 55. Nxb6 {[%clk 0:00:14]}  Rf2 {[%clk 0:00:30]} 56. f4 {[%clk 0:00:15]}  Ne3 {[%clk 0:00:30]} 57. g5 {[%clk 0:00:15]}  Ng2 {[%clk 0:00:31]} 58. f5 {[%clk 0:00:14]}  Ne3 {[%clk 0:00:31]} 59. f6 {[%clk 0:00:14]}  gxf6+ {[%clk 0:00:31]} 60. gxf6 {[%clk 0:00:14]}  Ng4+ {[%clk 0:00:31]} 61. Ke4 {[%clk 0:00:14]}  Rxf6 {[%clk 0:00:31]} 62. Nd5 {[%clk 0:00:13]}  Nf2+ {[%clk 0:00:30]} 63. Ke5 {[%clk 0:00:12]}  Rf8 {[%clk 0:00:28]} 64. Ne3 {[%clk 0:00:12]}  Re8+ {[%clk 0:00:28]} 65. Kf4 {[%clk 0:00:11]}  Rxe3 {[%clk 0:00:28]} 66. Kf5 {[%clk 0:00:10]}  Kc2 {[%clk 0:00:29]} 67. Kg6 {[%clk 0:00:11]}  Kd3 {[%clk 0:00:29]} 0-1


[Site "https://www.chess.com"]

[Event "Titled Tuesday Blitz January 31 Early 2023"]
[White "Sanchez, Robert"]
[Black "Kornyukov, Alexey"]
[WhiteFideId "2034360"]
[BlackFideId "4150457"]
[WhiteElo "1966"]
[BlackElo "2452"]
[Result "1-0"]
[Round "10"]
[TimeControl "180+2"]
[Date "2023.01.31"]
[WhiteClock "0:00:05"]
[BlackClock "0:00:01"]

1. e4 {[%clk 0:02:57]}  c5 {[%clk 0:02:58]} 2. Nf3 {[%clk 0:02:57]}  Nc6 {[%clk 0:02:57]} 3. d4 {[%clk 0:02:57]}  cxd4 {[%clk 0:02:57]} 4. Nxd4 {[%clk 0:02:58]}  e5 {[%clk 0:02:57]} 5. Nb5 {[%clk 0:02:58]}  a6 {[%clk 0:02:57]} 6. Nd6+ {[%clk 0:02:55]}  Bxd6 {[%clk 0:02:57]} 7. Qxd6 {[%clk 0:02:56]}  Qe7 {[%clk 0:02:55]} 8. Qd1 {[%clk 0:02:52]}  Nf6 {[%clk 0:02:54]} 9. Nc3 {[%clk 0:02:48]}  O-O {[%clk 0:02:51]} 10. Bg5 {[%clk 0:02:45]}  Qe6 {[%clk 0:02:48]} 11. Be2 {[%clk 0:02:35]}  d6 {[%clk 0:02:44]} 12. O-O {[%clk 0:02:34]}  h6 {[%clk 0:02:43]} 13. Bh4 {[%clk 0:02:33]}  Nd7 {[%clk 0:02:27]} 14. Nd5 {[%clk 0:02:31]}  Qg6 {[%clk 0:02:22]} 15. f3 {[%clk 0:02:21]}  Nc5 {[%clk 0:02:13]} 16. c3 {[%clk 0:02:15]}  Be6 {[%clk 0:02:07]} 17. Ne7+ {[%clk 0:02:07]}  Nxe7 {[%clk 0:02:03]} 18. Bxe7 {[%clk 0:02:08]}  Rfe8 {[%clk 0:02:02]} 19. Qxd6 {[%clk 0:01:58]}  Rac8 {[%clk 0:01:52]} 20. Bh4 {[%clk 0:01:49]}  Rc6 {[%clk 0:01:43]} 21. Qxe5 {[%clk 0:01:36]}  Bd7 {[%clk 0:01:35]} 22. Qd4 {[%clk 0:01:25]}  Bh3 {[%clk 0:01:22]} 23. Bg3 {[%clk 0:01:23]}  Ne6 {[%clk 0:01:19]} 24. Qb4 {[%clk 0:01:17]}  Bxg2 {[%clk 0:01:11]} 25. Kxg2 {[%clk 0:01:15]}  Nf4+ {[%clk 0:01:09]} 26. Kf2 {[%clk 0:01:04]}  Rb6 {[%clk 0:01:04]} 27. Qa4 {[%clk 0:00:48]}  Nxe2 {[%clk 0:01:03]} 28. Qxe8+ {[%clk 0:00:48]}  Kh7 {[%clk 0:01:02]} 29. Kxe2 {[%clk 0:00:41]}  Rxb2+ {[%clk 0:00:59]} 30. Kd3 {[%clk 0:00:24]}  Qg5 {[%clk 0:00:53]} 31. Rad1 {[%clk 0:00:17]}  Qc5 {[%clk 0:00:35]} 32. Qe5 {[%clk 0:00:11]}  Qc6 {[%clk 0:00:31]} 33. Qd5 {[%clk 0:00:09]}  Qa4 {[%clk 0:00:28]} 34. Rd2 {[%clk 0:00:07]}  Rb5 {[%clk 0:00:25]} 35. Qd4 {[%clk 0:00:06]}  Qxa2 {[%clk 0:00:18]} 36. Rff2 {[%clk 0:00:06]}  Qb1+ {[%clk 0:00:17]} 37. Ke3 {[%clk 0:00:05]}  Qe1+ {[%clk 0:00:17]} 38. Rfe2 {[%clk 0:00:05]}  Qg1+ {[%clk 0:00:15]} 39. Kd3 {[%clk 0:00:04]}  Qb1+ {[%clk 0:00:14]} 40. Ke3 {[%clk 0:00:03]}  Qg1+ {[%clk 0:00:12]} 41. Bf2 {[%clk 0:00:03]}  Qg5+ {[%clk 0:00:12]} 42. f4 {[%clk 0:00:04]}  Qg4 {[%clk 0:00:11]} 43. Kd3 {[%clk 0:00:04]}  Qf3+ {[%clk 0:00:11]} 44. Re3 {[%clk 0:00:04]}  Qh1 {[%clk 0:00:10]} 45. e5 {[%clk 0:00:04]}  Qb1+ {[%clk 0:00:09]} 46. Ke2 {[%clk 0:00:04]}  Qh1 {[%clk 0:00:09]} 47. Qd3+ {[%clk 0:00:04]}  g6 {[%clk 0:00:09]} 48. Qe4 {[%clk 0:00:04]}  Qc1 {[%clk 0:00:06]} 49. e6 {[%clk 0:00:04]}  Rb1 {[%clk 0:00:06]} 50. exf7 {[%clk 0:00:03]}  Qf1+ {[%clk 0:00:06]} 51. Kf3 {[%clk 0:00:02]}  Qh3+ {[%clk 0:00:06]} 52. Bg3 {[%clk 0:00:02]}  Qf1+ {[%clk 0:00:04]} 53. Rf2 {[%clk 0:00:03]}  Qd1+ {[%clk 0:00:03]} 54. Ree2 {[%clk 0:00:02]}  Qh1+ {[%clk 0:00:03]} 55. Ke3 {[%clk 0:00:02]}  Qc1+ {[%clk 0:00:03]} 56. Rd2 {[%clk 0:00:03]}  Qe1+ {[%clk 0:00:03]} 57. Rfe2 {[%clk 0:00:03]}  Qg1+ {[%clk 0:00:03]} 58. Bf2 {[%clk 0:00:03]}  Qxh2 {[%clk 0:00:03]} 59. Qf3 {[%clk 0:00:03]}  Qh1 {[%clk 0:00:02]} 60. f5 {[%clk 0:00:04]}  Qc1 {[%clk 0:00:02]} 61. fxg6+ {[%clk 0:00:04]}  Kg7 {[%clk 0:00:01]} 62. f8=Q+ {[%clk 0:00:04]}  Kxg6 {[%clk 0:00:01]} 63. Q3f5# {[%clk 0:00:05]} 1-0


[Site "https://www.chess.com"]

[Event "Titled Tuesday Blitz January 31 Early 2023"]
[White "Skliarov, Viktor"]
[Black "Vaglio Munoz, Jaime"]
[WhiteFideId "14106736"]
[BlackFideId "6500145"]
[WhiteElo "2383"]
[BlackElo "2174"]
[Result "1-0"]
[Round "10"]
[TimeControl "180+2"]
[Date "2023.01.31"]
[WhiteClock "0:00:42"]
[BlackClock "0:00:42"]

1. e4 {[%clk 0:03:00]}  c6 {[%clk 0:03:00]} 2. d4 {[%clk 0:02:58]}  Qa5+ {[%clk 0:02:59]} 3. Nc3 {[%clk 0:02:54]}  b5 {[%clk 0:02:59]} 4. Bd2 {[%clk 0:02:45]}  b4 {[%clk 0:02:59]} 5. Nce2 {[%clk 0:02:44]}  Qb6 {[%clk 0:02:58]} 6. Nf3 {[%clk 0:02:40]}  d5 {[%clk 0:02:55]} 7. Ng3 {[%clk 0:02:37]}  e6 {[%clk 0:02:54]} 8. Bd3 {[%clk 0:02:25]}  Ba6 {[%clk 0:02:53]} 9. O-O {[%clk 0:02:21]}  Bxd3 {[%clk 0:02:52]} 10. cxd3 {[%clk 0:02:22]}  Nf6 {[%clk 0:02:52]} 11. Rc1 {[%clk 0:02:12]}  Qb5 {[%clk 0:02:48]} 12. Bf4 {[%clk 0:01:57]}  Be7 {[%clk 0:02:46]} 13. e5 {[%clk 0:01:48]}  Nfd7 {[%clk 0:02:44]} 14. Nh5 {[%clk 0:01:48]}  g6 {[%clk 0:02:35]} 15. Ng3 {[%clk 0:01:28]}  h5 {[%clk 0:02:34]} 16. Bg5 {[%clk 0:01:25]}  Bf8 {[%clk 0:02:14]} 17. h4 {[%clk 0:01:22]}  c5 {[%clk 0:02:09]} 18. dxc5 {[%clk 0:01:16]}  Bxc5 {[%clk 0:02:06]} 19. Ne2 {[%clk 0:01:11]}  O-O {[%clk 0:02:01]} 20. Ned4 {[%clk 0:01:07]}  Qb6 {[%clk 0:01:58]} 21. Nb3 {[%clk 0:01:05]}  d4 {[%clk 0:01:50]} 22. Nxc5 {[%clk 0:00:49]}  Nxc5 {[%clk 0:01:48]} 23. Be7 {[%clk 0:00:49]}  Rc8 {[%clk 0:01:46]} 24. Qd2 {[%clk 0:00:49]}  Kh7 {[%clk 0:01:05]} 25. Ng5+ {[%clk 0:00:46]}  Kg8 {[%clk 0:01:04]} 26. Qf4 {[%clk 0:00:46]}  f5 {[%clk 0:00:56]} 27. exf6 {[%clk 0:00:44]}  e5 {[%clk 0:00:49]} 28. f7+ {[%clk 0:00:42]}  Kg7 {[%clk 0:00:49]} 29. f8=Q+ {[%clk 0:00:41]}  Rxf8 {[%clk 0:00:42]} 30. Qxf8# {[%clk 0:00:42]} 1-0


[Site "https://www.chess.com"]

[Event "Titled Tuesday Blitz January 31 Early 2023"]
[White "Mitrovic, Darko R"]
[Black "Orujov, Elshad"]
[WhiteFideId "927023"]
[BlackFideId "13403540"]
[WhiteElo "2220"]
[BlackElo "2304"]
[Result "0-1"]
[Round "10"]
[TimeControl "180+2"]
[Date "2023.01.31"]
[WhiteClock "0:00:03"]
[BlackClock "0:01:17"]

1. d4 {[%clk 0:03:00]}  Nf6 {[%clk 0:02:59]} 2. Nf3 {[%clk 0:03:00]}  e6 {[%clk 0:02:58]} 3. g3 {[%clk 0:03:00]}  d5 {[%clk 0:02:59]} 4. Bg2 {[%clk 0:03:00]}  Be7 {[%clk 0:03:00]} 5. O-O {[%clk 0:03:00]}  O-O {[%clk 0:03:01]} 6. c4 {[%clk 0:03:01]}  dxc4 {[%clk 0:03:01]} 7. Qa4 {[%clk 0:03:01]}  a6 {[%clk 0:03:02]} 8. Qxc4 {[%clk 0:03:01]}  b5 {[%clk 0:03:02]} 9. Qc2 {[%clk 0:03:02]}  Bb7 {[%clk 0:03:03]} 10. Nbd2 {[%clk 0:02:57]}  Nbd7 {[%clk 0:03:01]} 11. a4 {[%clk 0:02:56]}  c5 {[%clk 0:03:01]} 12. axb5 {[%clk 0:02:53]}  axb5 {[%clk 0:03:02]} 13. Rxa8 {[%clk 0:02:53]}  Qxa8 {[%clk 0:03:02]} 14. dxc5 {[%clk 0:02:54]}  Bxc5 {[%clk 0:02:59]} 15. Nb3 {[%clk 0:02:49]}  Bb6 {[%clk 0:02:54]} 16. Bf4 {[%clk 0:02:35]}  Rc8 {[%clk 0:02:52]} 17. Qd2 {[%clk 0:02:28]}  Qa2 {[%clk 0:02:37]} 18. Nbd4 {[%clk 0:02:13]}  Ne4 {[%clk 0:02:31]} 19. Qb4 {[%clk 0:01:59]}  Qc4 {[%clk 0:02:12]} 20. Qxb5 {[%clk 0:01:29]}  Qxb5 {[%clk 0:01:24]} 21. Nxb5 {[%clk 0:01:29]}  Rc2 {[%clk 0:01:25]} 22. b4 {[%clk 0:00:14]}  Rxe2 {[%clk 0:01:23]} 23. Nfd4 {[%clk 0:00:13]}  Rb2 {[%clk 0:01:23]} 24. Be3 {[%clk 0:00:06]}  Rxb4 {[%clk 0:01:20]} 25. Bxe4 {[%clk 0:00:02]}  Bxe4 {[%clk 0:01:19]} 26. Nd6 {[%clk 0:00:02]}  Bxd4 {[%clk 0:01:15]} 27. Bxd4 {[%clk 0:00:02]}  Rxd4 {[%clk 0:01:16]} 28. Nxe4 {[%clk 0:00:03]}  Rxe4 {[%clk 0:01:17]} 0-1


[Site "https://www.chess.com"]

[Event "Titled Tuesday Blitz January 31 Early 2023"]
[White "Kostiukov, Alexandr"]
[Black "Ricaurte Lopez, Juan Carlos"]
[WhiteFideId "14108100"]
[BlackFideId "3600327"]
[WhiteElo "2271"]
[BlackElo "2226"]
[Result "0-1"]
[Round "10"]
[TimeControl "180+2"]
[Date "2023.01.31"]
[WhiteClock "0:00:06"]
[BlackClock "0:00:31"]

1. e4 {[%clk 0:02:37]}  e5 {[%clk 0:02:59]} 2. Nf3 {[%clk 0:02:37]}  d5 {[%clk 0:02:57]} 3. d3 {[%clk 0:02:28]}  Nc6 {[%clk 0:02:50]} 4. exd5 {[%clk 0:02:27]}  Qxd5 {[%clk 0:02:48]} 5. Nc3 {[%clk 0:02:27]}  Bb4 {[%clk 0:02:44]} 6. Bd2 {[%clk 0:02:27]}  Bxc3 {[%clk 0:02:38]} 7. Bxc3 {[%clk 0:02:28]}  Bf5 {[%clk 0:02:36]} 8. Qe2 {[%clk 0:02:25]}  Bg4 {[%clk 0:02:25]} 9. h3 {[%clk 0:01:59]}  Bxf3 {[%clk 0:02:24]} 10. gxf3 {[%clk 0:02:00]}  O-O-O {[%clk 0:02:22]} 11. Qe4 {[%clk 0:01:33]}  Nd4 {[%clk 0:02:19]} 12. Qxd5 {[%clk 0:01:26]}  Rxd5 {[%clk 0:02:19]} 13. O-O-O {[%clk 0:01:24]}  Nf6 {[%clk 0:02:14]} 14. Bg2 {[%clk 0:01:20]}  Rc5 {[%clk 0:02:10]} 15. Rhe1 {[%clk 0:01:16]}  Nh5 {[%clk 0:02:03]} 16. Bxd4 {[%clk 0:01:04]}  exd4 {[%clk 0:01:59]} 17. Re4 {[%clk 0:00:58]}  Rd8 {[%clk 0:01:54]} 18. h4 {[%clk 0:00:55]}  g6 {[%clk 0:01:49]} 19. Rde1 {[%clk 0:00:53]}  Rcd5 {[%clk 0:01:27]} 20. Kd2 {[%clk 0:00:39]}  f5 {[%clk 0:01:24]} 21. Re7 {[%clk 0:00:37]}  R5d7 {[%clk 0:01:24]} 22. Re8 {[%clk 0:00:34]}  Nf4 {[%clk 0:01:19]} 23. Bf1 {[%clk 0:00:16]}  c6 {[%clk 0:01:18]} 24. Rxd8+ {[%clk 0:00:14]}  Kxd8 {[%clk 0:01:18]} 25. b3 {[%clk 0:00:14]}  Re7 {[%clk 0:01:16]} 26. Ra1 {[%clk 0:00:08]}  Kd7 {[%clk 0:01:13]} 27. a4 {[%clk 0:00:08]}  a5 {[%clk 0:01:12]} 28. Rb1 {[%clk 0:00:08]}  c5 {[%clk 0:01:11]} 29. c3 {[%clk 0:00:07]}  Ne6 {[%clk 0:01:07]} 30. Re1 {[%clk 0:00:06]}  dxc3+ {[%clk 0:01:03]} 31. Kxc3 {[%clk 0:00:07]}  Nd4 {[%clk 0:01:01]} 32. Rxe7+ {[%clk 0:00:08]}  Kxe7 {[%clk 0:01:00]} 33. Kc4 {[%clk 0:00:09]}  Kd6 {[%clk 0:01:00]} 34. Bg2 {[%clk 0:00:08]}  h6 {[%clk 0:00:43]} 35. f4 {[%clk 0:00:08]}  b6 {[%clk 0:00:39]} 36. Bd5 {[%clk 0:00:08]}  Ne2 {[%clk 0:00:38]} 37. Bf7 {[%clk 0:00:08]}  Nxf4 {[%clk 0:00:38]} 38. Kb5 {[%clk 0:00:08]}  Kc7 {[%clk 0:00:36]} 39. Bc4 {[%clk 0:00:06]}  g5 {[%clk 0:00:34]} 40. hxg5 {[%clk 0:00:06]}  hxg5 {[%clk 0:00:34]} 41. f3 {[%clk 0:00:06]}  g4 {[%clk 0:00:33]} 42. fxg4 {[%clk 0:00:07]}  fxg4 {[%clk 0:00:33]} 43. d4 {[%clk 0:00:05]}  cxd4 {[%clk 0:00:31]} 44. Bf1 {[%clk 0:00:06]}  d3 {[%clk 0:00:31]} 0-1


[Site "https://www.chess.com"]